Cogmind - Beta 10.2 @@@ ROGUE MODE // 2020.12.25 @ 13:00:30 Player: SureStep Result: Self-destructed Performance ------------- Evolutions (0) 0 Regions Visited (4) 800 Robots Destroyed (22) 110 Value Destroyed (416) 416 Prototype IDs (4) 80 Alien Tech Used (0) 0 Bonus (300) 300 TOTAL SCORE: 1706 Bonus ------- Aligned with FarCom 300 Cogmind --------- Core Integrity 153/250 Matter 205/300 Energy 250/250 System Corruption 0% Temperature Cool (0) Movement Rolling (100) Location -9/Mines Parts ------- > --- POWER (1) -------- Ion Engine > --- PROPULSION (2) --- Compact Wheel > --- UTILITY (2) ------ Heat Sink Medium Storage Unit > --- WEAPON (2) ------- (None) > --- INVENTORY (8) ---- Fission Core Compact Wheel Compact Wheel High-capacity Battery (400) Sensor Array ECM Suite Peak State ------------ > --- POWER ------------ Ion Engine > --- PROPULSION ------- Compact Wheel Compact Wheel > --- UTILITY ---------- Heat Sink Medium Storage Unit > --- WEAPON ----------- Heavy EM Pulse Gun Rocket Launcher > --- INVENTORY -------- Fission Core Compact Wheel Compact Wheel High-capacity Battery Sensor Array ECM Suite Medium Laser [Rating: 10] Favorites ----------- Power Ion Engine Engine Ion Engine Propulsion Compact Wheel Wheel Compact Wheel Utility Heat Sink Device Heat Sink Storage Medium Storage Unit Weapon Medium Laser Energy Gun Medium Laser Energy Cannon Beam Cannon Ballistic Gun Light Assault Rifle Launcher Rocket Launcher Build | -11 -10 -10 -10 -9 ------- Run | Scr Mat Min Exi Min Slots Evolved . | . . . . . Power . | . . . . . Propulsion . | . . . . . Utility . | . . . . . Weapon . | . . . . . Parts Attached 18 | 8 7 1 1 1 Power 2 | 1 . . 1 . Engine 2 | 1 . . 1 . Core . | . . . . . Reactor . | . . . . . Propulsion 5 | 4 1 . . . Treads . | . . . . . Leg . | . . . . . Wheel 5 | 4 1 . . . Hover . | . . . . . Flight . | . . . . . Utility 3 | 1 2 . . . Device 1 | . 1 . . . Storage 2 | 1 1 . . . Processor . | . . . . . Hackware . | . . . . . Protection . | . . . . . Artifact . | . . . . . Weapon 8 | 2 4 1 . 1 Energy Gun 3 | . 2 . . 1 Energy Cannon 1 | . 1 . . . Ballistic Gun 3 | 2 1 . . . Ballistic Cannon . | . . . . . Launcher 1 | . . 1 . . Special Weapon . | . . . . . Impact Weapon . | . . . . . Slashing Weapon . | . . . . . Piercing Weapon . | . . . . . Special Melee Weapon . | . . . . . Unidentified Prototypes . | . . . . . Parts Lost 4 | . 1 . . 3 Power . | . . . . . Propulsion 1 | . . . . 1 Utility . | . . . . . Weapon 3 | . 1 . . 2 Highest Loss Streak 3 | . 1 . . 3 Average Slot Usage (%) 99 | . 98 100 100 99 Engine 14 | . 14 14 14 14 Wheel 28 | . 28 28 28 28 Device 13 | . 13 14 14 14 Storage 14 | . 14 14 14 14 Energy Gun 14 | . 15 18 14 13 Ballistic Gun 4 | . 10 . . . Launcher 7 | . . 9 14 14 Naked Turns . | . . . . . Heaviest Build 21 | 11 17 20 20 21 Greatest Support 32 | 32 32 32 32 32 Greatest Overweight (x) . | . . . . . Average Overweight (x) . | . . . . . Largest Inventory Capacity 8 | 6 8 8 8 8 Average Capacity 7 | 5 7 8 8 8 Most Carried 8 | 3 8 8 8 8 Average Carried 5 | 1 4 6 6 6 Final Capacity 8 | 6 8 8 8 8 Final Carried 6 | 1 6 6 6 6 Class Distribution -------------------- 100% | Mutant Dominant Class ---------------- Mutant | -10/Materials Mutant | -10/Mines Mutant | -10/Exiles Mutant | -9/Mines Resources | -11 -10 -10 -10 -9 ----------- Run | Scr Mat Min Exi Min Matter Collected 437 | 252 155 . . 30 Remotely . | . . . . . Salvage Created 701 | 52 557 . . 92 Parts 52 | 3 42 . . 7 Haulers Intercepted 1 | . 1 . . . Recyclers Shooed 1 | . . . . 1 Parts Field Recycled . | . . . . . Retrieved Matter . | . . . . . Parts Self-Destructed . | . . . . . Prevented . | . . . . . Kills | -11 -10 -10 -10 -9 ------- Run | Scr Mat Min Exi Min Combat Hostiles Destroyed 15 | . 9 . . 6 Guns 10 | . 8 . . 2 Cannons 1 | . 1 . . . AOE 4 | . . . . 4 Classes Destroyed 9 | 1 5 . . 3 Worker 1 | . 1 . . . Tunneler 1 | . . . . 1 Hauler 1 | . 1 . . . Recycler 3 | 1 2 . . . Watcher 3 | . 3 . . . Swarmer 6 | . 3 . . 3 Grunt 6 | . 6 . . . Demolisher 1 | . . . . 1 Assembled 2 | . . . . 2 Best Kill Streak 4 | 1 3 . . 4 Combat Bots Only 3 | . 3 . . 3 Max Kills in Single Turn 2 | 1 1 . . 2 Gunslinging . | . . . . . Exploded 1 | . . . . 1 Melee . | . . . . . Uniques/NPCs Destroyed . | . . . . . Combat | -11 -10 -10 -10 -9 -------- Run | Scr Mat Min Exi Min Damage Taken 550 | . 299 . . 251 Core 97 | . 41 . . 56 Absorbed by Shields . | . . . . . Core Remaining (%) 100 | 100 . . . . Volleys Fired 58 | 5 43 . . 10 Largest 2 | 2 2 . . 2 Hottest 90 | 40 90 . . 78 Shots Fired 112 | 10 86 . . 16 Gun 92 | 10 76 . . 6 Cannon 10 | . 10 . . . Launcher 10 | . . . . 10 Special . | . . . . . Kinetic 58 | 10 48 . . . Thermal 38 | . 38 . . . Explosive 10 | . . . . 10 Electromagnetic 6 | . . . . 6 Robot Hit Streak 7 | 6 7 . . 6 Robot Miss Streak 4 | 2 4 . . 4 Penetration Max . | . . . . . Secondary Targets 1 | . 1 . . . Max Gunslinging Chain 1 | . 1 . . . Shots Hit Robots 58 | 7 44 . . 7 Core Hits 42 | 2 26 . . 14 Critical Hits . | . . . . . Critical Kills . | . . . . . Critical Parts Destroyed . | . . . . . Melee Attacks . | . . . . . Impact . | . . . . . Slashing . | . . . . . Piercing . | . . . . . Sneak Attacks . | . . . . . Combat Hostiles . | . . . . . Follow-up Attacks . | . . . . . Damage Inflicted 991 | 49 538 . . 404 Guns 517 | 49 414 . . 54 Cannons 124 | . 124 . . . Explosions 350 | . . . . 350 Melee . | . . . . . Ramming . | . . . . . Kinetic 225 | 49 176 . . . Thermal 362 | . 362 . . . Explosive 350 | . . . . 350 Electromagnetic 54 | . . . . 54 Impact . | . . . . . Slashing . | . . . . . Piercing . | . . . . . Highest Corruption . | . . . . . Average Corruption . | . . . . . Corruption Purged . | . . . . . Overload Shots . | . . . . . Overflow Damage . | . . . . . Projectiles . | . . . . . Explosions . | . . . . . Melee . | . . . . . Knockbacks . | . . . . . Impact . | . . . . . Kinetic . | . . . . . Secondary . | . . . . . Self-Inflicted Damage . | . . . . . Shots . | . . . . . Rammed . | . . . . . Targets Rammed . | . . . . . Kicked . | . . . . . Crushed . | . . . . . Highest Temperature 52 | . 52 . . 22 Average Temperature 22 | . 22 . . 18 Received Heat Transfer 126 | . 126 . . . Siege Activations . | . . . . . Robots Corrupted . | . . . . . Combat Hostiles . | . . . . . Parts Fried . | . . . . . Impact Corruptions . | . . . . . Robots Melted . | . . . . . Combat Hostiles . | . . . . . Parts Melted 2 | . 2 . . . Heat Transferred 903 | . 903 . . . Parts Sabotaged . | . . . . . Parts Stolen . | . . . . . Parts Stripped . | . . . . . Power Chain Reactions . | . . . . . Missiles Intercepted . | . . . . . Alert | -11 -10 -10 -10 -9 ------- Run | Scr Mat Min Exi Min Peak Influence 185 | 5 185 16 . 110 Initial 16 | . 3 16 . . Average 49 | 2 70 16 . 24 Maximum Alert Level . | . . . . . Low Security (%) 100 | 100 100 100 . 100 Level 1 . | . . . . . Level 2 . | . . . . . Level 3 . | . . . . . Level 4 . | . . . . . Level 5 . | . . . . . High Security . | . . . . . Max Security . | . . . . . Squads Dispatched 2 | . 2 . . . Investigation 1 | . 1 . . . Extermination . | . . . . . Reinforcement 1 | . 1 . . . Assault . | . . . . . Garrison . | . . . . . Intercept . | . . . . . Construction Impeded . | . . . . . Haulers Reinforced . | . . . . . Stealth | -11 -10 -10 -10 -9 --------- Run | Scr Mat Min Exi Min Distress Signals 2 | . 2 . . . Communications Jammed . | . . . . . Distress Signals . | . . . . . Times Spotted 26 | . 19 . . 7 Peak Tracking Total 5 | . 4 . . 5 Tactical Retreats 1 | . 1 . . . Traps | -11 -10 -10 -10 -9 ------- Run | Scr Mat Min Exi Min Traps Triggered . | . . . . . Indirectly . | . . . . . Trap Hack Attempts . | . . . . . Triggered . | . . . . . Disarmed 1 | . 1 . . . Reprogrammed . | . . . . . Reused . | . . . . . Traps Extracted . | . . . . . Installed . | . . . . . Triggered . | . . . . . Machines | -11 -10 -10 -10 -9 ---------- Run | Scr Mat Min Exi Min Machines Disabled 1 | . . . . 1 Max in Single Turn 1 | . . . . 1 Machines Sabotaged . | . . . . . Garrisons Compromised . | . . . . . Overloaded Fab Kills . | . . . . . Fab Network Shutdowns . | . . . . . Hacking | -11 -10 -10 -10 -9 --------- Run | Scr Mat Min Exi Min Machines Accessed 11 | . 7 . 4 . Terminals 7 | . 7 . . . Fabricators . | . . . . . Repair Stations . | . . . . . Recycling Units . | . . . . . Scanalyzers . | . . . . . Garrison Access . | . . . . . Total Hacks 44 | . 18 . 26 . Successful 39 | . 13 . 26 . Failed 5 | . 5 . . . Catastrophic . | . . . . . Database Lockouts . | . . . . . Manual . | . . . . . Terminals 18 | . 18 . . . Fabricators . | . . . . . Repair Stations . | . . . . . Recycling Units . | . . . . . Scanalyzers . | . . . . . Garrison Access . | . . . . . Terminal Hacks 39 | . 13 . 26 . Record 26 | . . . 26 . Prototype ID Bank 2 | . 2 . . . Emergency Access Points 1 | . 1 . . . Locate Traps 1 | . 1 . . . Disarm Traps 1 | . 1 . . . Patrol Status 1 | . 1 . . . Investigation Status 1 | . 1 . . . Reinforcement Status 1 | . 1 . . . Hauler Manifests 2 | . 2 . . . Zone Layout 3 | . 3 . . . Fabricator Hacks . | . . . . . Repair Station Hacks . | . . . . . Recycling Unit Hacks . | . . . . . Scanalyzer . | . . . . . Garrison Access Hacks . | . . . . . Unauthorized Hacks . | . . . . . Terminals . | . . . . . Fabricators . | . . . . . Repair Stations . | . . . . . Recycling Units . | . . . . . Scanalyzers . | . . . . . Garrison Access . | . . . . . Data Cores Recovered . | . . . . . Used . | . . . . . Hacking Detections 5 | . 5 . . . Full Trace Events 1 | . 1 . . . Feedback Events . | . . . . . Feedback Blocked . | . . . . . Robot Schematics Acquired . | . . . . . Robots Built . | . . . . . Matter . | . . . . . Time . | . . . . . Total Robot Build Rating . | . . . . . Part Schematics Acquired . | . . . . . Parts Built . | . . . . . Matter . | . . . . . Time . | . . . . . Total Part Build Rating . | . . . . . Parts Repaired . | . . . . . Time . | . . . . . Parts Recycled . | . . . . . Recycled Matter . | . . . . . Retrieved Matter . | . . . . . Retrieved Components . | . . . . . Parts Scanalyzed . | . . . . . Part Schematics Acquired . | . . . . . Parts Damaged . | . . . . . Bothacking | -11 -10 -10 -10 -9 ------------ Run | Scr Mat Min Exi Min Used RIF Installer . | . . . . . Robots Hacked . | . . . . . Non-combat . | . . . . . Combat . | . . . . . Robot Hacks Applied . | . . . . . Relay Couplers Released . | . . . . . Robots Rewired . | . . . . . Allies Hacked . | . . . . . Hacks Repelled . | . . . . . Allies | -11 -10 -10 -10 -9 -------- Run | Scr Mat Min Exi Min Total Allies . | . . . . . Largest Group . | . . . . . Highest-Rated Group . | . . . . . Highest-Rated Ally . | . . . . . Total Orders . | . . . . . Ally Attacks . | . . . . . Total Damage . | . . . . . Kills . | . . . . . Allies Corrupted . | . . . . . Allies Melted . | . . . . . Intel | -11 -10 -10 -10 -9 ------- Run | Scr Mat Min Exi Min Robot Analysis Total . | . . . . . Derelict Logs Recovered 2 | . . 1 . 1 Drone Launches . | . . . . . Drone Recoveries . | . . . . . Exploration | -11 -10 -10 -10 -9 ------------- Run | Scr Mat Min Exi Min Turns Passed 2222 | 67 966 171 608 410 Spaces Moved 1905 | 41 769 168 602 325 Core 3 | 3 . . . . Treads . | . . . . . Legs . | . . . . . Wheels 1902 | 38 769 168 602 325 Hover . | . . . . . Flight . | . . . . . Fastest Speed 50 | 50 100 100 100 100 Average Speed 99 | 86 100 100 100 100 Slowest Speed 100 | 100 100 100 100 100 Overloaded Moves . | . . . . . Propulsion Burnouts . | . . . . . Robots Hopped . | . . . . . Cave-ins Triggered . | . . . . . Exploration Rate (%) 61 | 4 97 45 92 67 Regions Visited 4 Branch Regions 3 Pre-discovered Areas 2 | . . 1 1 . Known Exits Taken . | . . . . . Unknown Exits Taken 4 | 1 1 1 1 . Scrap Searched 2 | . . 1 . 1 Spaces Dug . | . . . . . Terrain Destroyed 46 | . . . . 46 Melee . | . . . . . Projectile . | . . . . . AOE 46 | . . . . 46 Terrain Rammed . | . . . . . Walls Destroyed . | . . . . . Machines Disabled . | . . . . . Actions | -11 -10 -10 -10 -9 --------- Run | Scr Mat Min Exi Min Total 2137 | 66 896 171 609 395 Wait 106 | . 50 . . 56 Move 1901 | 40 768 167 601 325 Hop . | . . . . . Pick Up 29 | 9 15 1 3 1 Fast Attach . | . . . . . Attach 18 | 8 7 1 1 1 Detach 10 | 2 5 1 1 1 Swap . | . . . . . Drop 15 | 2 8 1 3 1 Fire 58 | 5 43 . . 10 Melee . | . . . . . Ram . | . . . . . Kick . | . . . . . Crush . | . . . . . Escape Stasis . | . . . . . Rewire . | . . . . . Trap . | . . . . . Miscellaneous . | . . . . . Route ------- -11/Scrapyard -10/Materials (discovered 4 exits: [*Mat x3] / [*Min]) -10/Mines (discovered 2 exits: [*Mat] / *Exi) -10/Exiles (discovered 2 exits: [*Min x2]) -9/Mines History --------- Turn | Location | Event 7 | -11/Scrapyard | Discovered new exit (range 15) 68 | -11/Scrapyard | Entered Materials 252 | -10/Materials | Discovered new exit (range 10) 304 | -10/Materials | Build established: Mutant 484 | -10/Materials | Discovered new exit (range 8) 724 | -10/Materials | Discovered new exit (range 8) 901 | -10/Materials | Discovered new exit (range 11) 1034 | -10/Materials | Entered Mines 1056 | -10/Mines | Discovered new exit (range 9) 1089 | -10/Mines | Received a Rocket Launcher from a helpful Derelict 1140 | -10/Mines | Learned location of Zion (-7) 1201 | -10/Mines | Deemed a non-threat by the Exiles lab entrance 1201 | -10/Mines | Discovered new exit (range 5) 1205 | -10/Mines | Entered Exiles 1228 | -10/Exiles | Discovered new exit (range 15) 1258 | -10/Exiles | Met 8R-AWN 1278 | -10/Exiles | Met EX-HEX 1350 | -10/Exiles | Met EX-DEC 1409 | -10/Exiles | Met EX-BIN 1429 | -10/Exiles | Aligned with FarCom system 1430 | -10/Exiles | Given EX-Vault access code 1581 | -10/Exiles | Discovered new exit (range 10) 1648 | -10/Exiles | Visited The Gauntlet 1813 | -10/Exiles | Entered Mines 1816 | -9/Mines | Learned Materials stockpile data 2191 | -9/Mines | Assembled infested the area 2223 | -9/Mines | Self-destructed Last Messages --------------- U-05 Engineer builds a Wall. The unstable cave ceiling collapses. Acquired 6 matter. U-05 Engineer lays Concrete. Acquired 4 matter. U-05 Engineer lays Concrete. U-05 Engineer builds a Wall. U-05 Engineer lays Concrete. K-01 Serf collects debris. ALERT: Infestation in the mines, dispatching Demolisher response squad. C-30 ARC bursts open, deploying its payload. D-53 Grenadier unfolds itself. D-53 Grenadier destroyed. as-48853 destroyed. The unstable cave ceiling collapses. as-79077 destroyed. Hvy. EM Pulse Gun destroyed. Core Extractor disabled. Rocket Launcher destroyed. Com. Wheel destroyed. Map ----- +----------------------------------------------------+ | ?????????????????????????????????????????????????? | | ?????????????????????????????????????????????????? | | ?????????????????????????????????????????????????? | | ?????????????????????????????????????????????????? | | ?????????????????????????????????????????????????? | | ?????????????????????????????????????????????????? | | ???????????????????g?????????????????????????????? | | ?????????????????????????????????????????????????? | | ????????????????g???????# ??????????????????????? | | ????????????????????????# ??????????????????????? | | ??????????????????????? ?????????????????????? | | ?????????????????###? % #???????????????????? | | ????????????????? ##??????????????????? | | ???????????????? #??????????????????? | | ??????????????? ###????????????????? | | ???????????????# #????????????????# | | ???????????????# d #???????????????## | | ?????????????### %% ???????????????## | | ?????????????# % #???????????????# | | ?????????????? ##??????????????# | | ???????????????# ##?????????????# | | ???????????????# #########?????# # | | ???????????????# #?????# # | | ???????????????# #?????# # | | ????????????????# ##### #?????# # | | ????????????????# @ ##???# #?????# # | | ?????????????????## ####????# #?????# # | | ?????????????? a !%= ##???????# ####### # | | ???????????< ###=#### ##????????# ]%[ | | ?????????????????????# ##?????????# ######### | | ?????????????????????## ####??????????# #???????? | | ??????????????????????###??????????????# #?####??? | | ???????????????????????????????????????# ### ##?# | | ???????????????????????????????????????# ## ### | | ???????????????????????????????????????# | | ???????????????????????????????????????#### | | ??????????????????????????????????????????## | | ???????????????????????????????????????????## | | ????????????????????????????????????????????##### | | ????????????????????????????????????????????????## | | ???????????????????????????????????#####?????????# | | ??????????????????????????????????## ##????????? | | ??????????????????????????????????# #????????? | | ?????????????????????????????????## #????????? | | ???????????????#?????????????????# #####????? | | ??????????????## ??????????????## #????? | | ??????? #### #######?????## #????? | | ??????? #????## ###### #????? | | ??????? #??### ##????# #????? | | ??????? #### #?## ##????## ####?? | +----------------------------------------------------+ Best States ------------- Heat Dissipation 35 Energy Generation 10 Energy Capacity 250 Matter Stores 300 Matter Capacity 300 Sight Range 16 Terrain Scan Density 10 Evasion (%) 44 Item Schematics ----------------- None Robot Schematics ------------------ None Fabricated ------------ Nothing Alien Tech Used ----------------- None Achievements -------------- Librarian Challenges ------------ None Game ------ Seed CompactGatlingBoregun Manual? 0 Play Time 00:26:08 Cumulative 12.9 hours Start 2020.12.25 @ 12:34:15 End 2020.12.25 @ 13:00:30 Sessions 1 Manual Loads 0 Difficulty Rogue Special Mode None Game No. 16 Rogue 16 Adventurer 0 Explorer 0 Win Type - Total 0 Types 0/0/0/0/0/0/0/0/0 Lore% 10 Gallery% 13 Achievement% 12 Wizard Run 0 Options --------- ASCII 0 Keyboard 0 Movement Mouse Keybinds 0 Fullscreen 1 Font 18/SmallcapsGlow Map View 76x50 Tactical HUD 0 Map Filters NONE Filters NONE Steam 1 RUN: 864aec59-097f-40e3-b7b7-10a27c6c7a81